[Event "*** Titled Tuesday Blitz"]
[Site "Chess.com"]
[Date "2020.12.29"]
[Round "11"]
[White "esapunov"]
[Black "ChristopherYoo"]
[Result "0-1"]
[WhiteElo "2705"]
[BlackElo "2876"]
[TimeControl "180+1"]
[EndTime "12:06:13 PST"]
[Termination "ChristopherYoo won by resignation"]

1. c4 {[%clk 0:03:00.9]} 1... e6 {[%clk 0:02:57.8]} 2. Nf3 {[%clk 0:03:00.3]}
2... d5 {[%clk 0:02:57.6]} 3. d4 {[%clk 0:02:58.9]} 3... Nf6 {[%clk 0:02:55.9]}
4. Nc3 {[%clk 0:02:58.4]} 4... dxc4 {[%clk 0:02:55.7]} 5. e4 {[%clk 0:02:56.9]}
5... Bb4 {[%clk 0:02:55.2]} 6. Bxc4 {[%clk 0:02:55.5]} 6... Nxe4 {[%clk
0:02:55]} 7. O-O {[%clk 0:02:55.7]} 7... Nxc3 {[%clk 0:02:55.1]} 8. bxc3 {[%clk
0:02:56]} 8... Bd6 {[%clk 0:02:55.8]} 9. Qe2 {[%clk 0:02:55.8]} 9... O-O {[%clk
0:02:53.8]} 10. Ne5 {[%clk 0:02:53.8]} 10... Nd7 {[%clk 0:02:28.5]} 11. f4
{[%clk 0:02:52.2]} 11... Nf6 {[%clk 0:02:25.2]} 12. Be3 {[%clk 0:02:42.5]} 12...
Nd5 {[%clk 0:02:00.3]} 13. Bd2 {[%clk 0:02:42]} 13... f6 {[%clk 0:01:40]} 14.
Nd3 {[%clk 0:02:38.6]} 14... c6 {[%clk 0:01:37.4]} 15. Bb3 {[%clk 0:02:36]}
15... Kh8 {[%clk 0:01:30]} 16. c4 {[%clk 0:02:31.9]} 16... Ne7 {[%clk
0:01:29.2]} 17. Bc3 {[%clk 0:02:28.9]} 17... Bd7 {[%clk 0:01:21.4]} 18. Rae1
{[%clk 0:02:28]} 18... a5 {[%clk 0:01:15.5]} 19. a4 {[%clk 0:02:26.5]} 19... Be8
{[%clk 0:01:12.2]} 20. Qxe6 {[%clk 0:02:19.9]} 20... Bf7 {[%clk 0:01:12.3]} 21.
Qe2 {[%clk 0:02:16.4]} 21... Nf5 {[%clk 0:01:06.7]} 22. Qe4 {[%clk 0:02:02.4]}
22... Qd7 {[%clk 0:01:01]} 23. g4 {[%clk 0:01:54.7]} 23... Nh4 {[%clk
0:00:54.5]} 24. f5 {[%clk 0:01:42]} 24... Rae8 {[%clk 0:00:52.9]} 25. Ne5 {[%clk
0:01:38.7]} 25... fxe5 {[%clk 0:00:49.9]} 26. dxe5 {[%clk 0:01:38.5]} 26... Bb4
{[%clk 0:00:38.4]} 27. Rd1 {[%clk 0:01:35.1]} 27... Qc7 {[%clk 0:00:35.9]} 28.
Ba1 {[%clk 0:01:33.1]} 28... Be7 {[%clk 0:00:23.9]} 29. e6 {[%clk 0:01:17.2]}
29... Bf6 {[%clk 0:00:21.4]} 30. Bxf6 {[%clk 0:01:08.3]} 30... gxf6 {[%clk
0:00:21.3]} 31. Qd4 {[%clk 0:01:07.9]} 31... Bxe6 {[%clk 0:00:20.7]} 32. fxe6
{[%clk 0:01:07.4]} 32... Rxe6 {[%clk 0:00:21.6]} 33. c5 {[%clk 0:01:01.7]} 33...
Re2 {[%clk 0:00:21.2]} 34. Qd6 {[%clk 0:01:01.8]} 34... Qg7 {[%clk 0:00:20.4]}
35. Qg3 {[%clk 0:00:59]} 35... Rg2+ {[%clk 0:00:20]} 36. Qxg2 {[%clk 0:00:58.8]}
36... Nxg2 {[%clk 0:00:20.9]} 37. Kxg2 {[%clk 0:00:58.4]} 37... Qxg4+ {[%clk
0:00:21.2]} 38. Kf2 {[%clk 0:00:51.9]} 38... Qf4+ {[%clk 0:00:18.4]} 39. Ke2
{[%clk 0:00:50.6]} 39... Qxh2+ {[%clk 0:00:15.6]} 40. Kd3 {[%clk 0:00:50]} 40...
Qe5 {[%clk 0:00:12.8]} 41. Kc2 {[%clk 0:00:41.8]} 41... Qxc5+ {[%clk 0:00:12.4]}
42. Kb2 {[%clk 0:00:42]} 42... Qe5+ {[%clk 0:00:08.4]} 43. Ka2 {[%clk
0:00:41.4]} 43... Qe2+ {[%clk 0:00:08.4]} 44. Ka3 {[%clk 0:00:39.6]} 44... Qe7+
{[%clk 0:00:08.3]} 45. Kb2 {[%clk 0:00:37.9]} 45... Rd8 {[%clk 0:00:08.4]} 46.
Rde1 {[%clk 0:00:35.4]} 46... Rd2+ {[%clk 0:00:06.8]} 47. Kc1 {[%clk 0:00:35.3]}
47... Qd8 {[%clk 0:00:05]} 48. Bc2 {[%clk 0:00:28]} 48... Rg2 {[%clk 0:00:02.7]}
49. Kb1 {[%clk 0:00:23.7]} 49... Qb6+ {[%clk 0:00:02.6]} 50. Kc1 {[%clk
0:00:21.3]} 50... Qc5 {[%clk 0:00:02.9]} 51. Re8+ {[%clk 0:00:20.3]} 51... Kg7
{[%clk 0:00:03.3]} 0-1

[Event "*** Titled Tuesday Blitz"]
[Site "Chess.com"]
[Date "2020.12.29"]
[Round "11"]
[White "Borsuk_Konstantin"]
[Black "Vuk2000"]
[Result "0-1"]
[WhiteElo "2674"]
[BlackElo "2826"]
[TimeControl "180+1"]
[EndTime "12:06:14 PST"]
[Termination "Vuk2000 won on time"]

1. d4 {[%clk 0:03:00.9]} 1... e6 {[%clk 0:03:00.3]} 2. c4 {[%clk 0:03:01.1]}
2... Nf6 {[%clk 0:03:00.7]} 3. Nc3 {[%clk 0:03:01.2]} 3... Bb4 {[%clk
0:03:01.1]} 4. Qc2 {[%clk 0:03:01.7]} 4... O-O {[%clk 0:03:01.1]} 5. a3 {[%clk
0:03:02.1]} 5... Bxc3+ {[%clk 0:03:01.1]} 6. Qxc3 {[%clk 0:03:03]} 6... Ne4
{[%clk 0:03:01.6]} 7. Qe3 {[%clk 0:03:00.7]} 7... f5 {[%clk 0:02:58.6]} 8. g3
{[%clk 0:03:00.5]} 8... b6 {[%clk 0:02:57.4]} 9. Bg2 {[%clk 0:03:01]} 9... Bb7
{[%clk 0:02:57.4]} 10. f3 {[%clk 0:03:00.1]} 10... Nd6 {[%clk 0:02:45]} 11. b3
{[%clk 0:02:59.2]} 11... b5 {[%clk 0:02:45.3]} 12. c5 {[%clk 0:02:56.7]} 12...
Ne8 {[%clk 0:02:45.2]} 13. Qd3 {[%clk 0:02:49]} 13... Nc6 {[%clk 0:02:30.3]} 14.
e3 {[%clk 0:02:42.3]} 14... b4 {[%clk 0:02:29.6]} 15. a4 {[%clk 0:02:36.6]}
15... a5 {[%clk 0:02:26.8]} 16. Ne2 {[%clk 0:02:32.8]} 16... Ba6 {[%clk
0:02:26.2]} 17. Qd2 {[%clk 0:02:32.3]} 17... Nf6 {[%clk 0:02:24.9]} 18. Bb2
{[%clk 0:02:26.6]} 18... d6 {[%clk 0:02:17.7]} 19. Rc1 {[%clk 0:02:25.1]} 19...
d5 {[%clk 0:01:27.3]} 20. Nf4 {[%clk 0:01:59.2]} 20... Qe7 {[%clk 0:01:27.2]}
21. Bf1 {[%clk 0:01:50.8]} 21... Bb7 {[%clk 0:01:15.9]} 22. Nd3 {[%clk 0:01:47]}
22... Nd7 {[%clk 0:01:10]} 23. Kf2 {[%clk 0:01:40.1]} 23... Rad8 {[%clk
0:01:03.7]} 24. h4 {[%clk 0:01:36.6]} 24... e5 {[%clk 0:01:03.9]} 25. dxe5
{[%clk 0:01:33.8]} 25... Ndxe5 {[%clk 0:01:00.7]} 26. Nxe5 {[%clk 0:01:32.7]}
26... Nxe5 {[%clk 0:00:59.3]} 27. Bxe5 {[%clk 0:01:26]} 27... Qxe5 {[%clk
0:00:53.5]} 28. c6 {[%clk 0:01:21.4]} 28... Bc8 {[%clk 0:00:51.9]} 29. Qd4
{[%clk 0:01:19.3]} 29... Qxd4 {[%clk 0:00:41.1]} 30. exd4 {[%clk 0:01:18.8]}
30... Rd6 {[%clk 0:00:41.8]} 31. Bd3 {[%clk 0:00:49.7]} 31... Rff6 {[%clk
0:00:29.6]} 32. Rhe1 {[%clk 0:00:49.2]} 32... Kf7 {[%clk 0:00:28.1]} 33. Bb5
{[%clk 0:00:45.8]} 33... f4 {[%clk 0:00:18.6]} 34. g4 {[%clk 0:00:44.7]} 34...
Rfe6 {[%clk 0:00:19.2]} 35. Rxe6 {[%clk 0:00:28]} 35... Bxe6 {[%clk 0:00:18.6]}
36. Bd3 {[%clk 0:00:27.7]} 36... Rd8 {[%clk 0:00:13.4]} 37. Rc5 {[%clk
0:00:26.8]} 37... Ra8 {[%clk 0:00:13.3]} 38. Ke2 {[%clk 0:00:20.4]} 38... h6
{[%clk 0:00:11]} 39. Kd2 {[%clk 0:00:19.3]} 39... Ke7 {[%clk 0:00:11.3]} 40. Rc1
{[%clk 0:00:15.6]} 40... Kd6 {[%clk 0:00:10.9]} 41. Bb5 {[%clk 0:00:15.6]} 41...
Re8 {[%clk 0:00:07.5]} 42. Re1 {[%clk 0:00:15.1]} 42... Bf7 {[%clk 0:00:05.7]}
43. Rxe8 {[%clk 0:00:03.6]} 43... Bxe8 {[%clk 0:00:06.6]} 44. Kd3 {[%clk
0:00:01.8]} 44... Bxc6 {[%clk 0:00:07]} 0-1

[Event "*** Titled Tuesday Blitz"]
[Site "Chess.com"]
[Date "2020.12.29"]
[Round "11"]
[White "DryCounty"]
[Black "Supernotar"]
[Result "1/2-1/2"]
[WhiteElo "2645"]
[BlackElo "2838"]
[TimeControl "180+1"]
[EndTime "12:06:20 PST"]
[Termination "Game drawn by repetition"]

1. e4 {[%clk 0:03:00.9]} 1... c6 {[%clk 0:02:59.8]} 2. d4 {[%clk 0:02:59]} 2...
d5 {[%clk 0:02:59.3]} 3. Nc3 {[%clk 0:02:59]} 3... dxe4 {[%clk 0:02:59.4]} 4.
Nxe4 {[%clk 0:02:58.7]} 4... Bf5 {[%clk 0:02:59]} 5. Nc5 {[%clk 0:02:58.4]} 5...
e5 {[%clk 0:02:58.6]} 6. Nxb7 {[%clk 0:02:58]} 6... Qb6 {[%clk 0:02:58.3]} 7.
Nc5 {[%clk 0:02:57.9]} 7... Bxc5 {[%clk 0:02:58]} 8. dxc5 {[%clk 0:02:58.1]}
8... Qxc5 {[%clk 0:02:58.9]} 9. c3 {[%clk 0:02:58.4]} 9... Nf6 {[%clk
0:02:57.9]} 10. Nf3 {[%clk 0:02:58.1]} 10... Nbd7 {[%clk 0:02:56.5]} 11. Be2
{[%clk 0:02:56.2]} 11... O-O {[%clk 0:02:56.1]} 12. O-O {[%clk 0:02:55.7]} 12...
Rad8 {[%clk 0:02:51.6]} 13. Qa4 {[%clk 0:02:55.1]} 13... Nd5 {[%clk 0:02:48.9]}
14. Qh4 {[%clk 0:02:45.8]} 14... h6 {[%clk 0:02:42]} 15. c4 {[%clk 0:02:45.2]}
15... N5f6 {[%clk 0:02:38]} 16. Be3 {[%clk 0:02:44.5]} 16... Qe7 {[%clk
0:02:33.4]} 17. b3 {[%clk 0:02:40]} 17... Rfe8 {[%clk 0:02:28.2]} 18. Rfe1
{[%clk 0:02:39]} 18... Bg6 {[%clk 0:02:22.6]} 19. Rad1 {[%clk 0:02:38.3]} 19...
Nc5 {[%clk 0:02:10.3]} 20. Bf1 {[%clk 0:02:27.1]} 20... Rxd1 {[%clk 0:02:06]}
21. Rxd1 {[%clk 0:02:26.6]} 21... Nce4 {[%clk 0:01:57.9]} 22. h3 {[%clk
0:02:15.5]} 22... Nc3 {[%clk 0:01:47.9]} 23. Re1 {[%clk 0:02:15.4]} 23... Qd6
{[%clk 0:01:36.8]} 24. c5 {[%clk 0:02:06.7]} 24... Qd7 {[%clk 0:01:36.9]} 25.
Bc4 {[%clk 0:02:03.2]} 25... Ncd5 {[%clk 0:01:32.9]} 26. Bc1 {[%clk 0:01:53.3]}
26... e4 {[%clk 0:01:31.1]} 27. Nh2 {[%clk 0:01:44]} 27... Kh7 {[%clk
0:01:27.8]} 28. Bb2 {[%clk 0:01:42.8]} 28... e3 {[%clk 0:01:22.1]} 29. fxe3
{[%clk 0:01:35.7]} 29... Rxe3 {[%clk 0:01:19.8]} 30. Bxf6 {[%clk 0:01:29.4]}
30... Rxe1+ {[%clk 0:01:16.3]} 31. Qxe1 {[%clk 0:01:30.3]} 31... Nxf6 {[%clk
0:01:15.1]} 32. Nf3 {[%clk 0:01:26.1]} 32... Be4 {[%clk 0:01:11.1]} 33. Nd2
{[%clk 0:01:06.3]} 33... Qd4+ {[%clk 0:01:09]} 34. Qf2 {[%clk 0:01:06]} 34...
Qa1+ {[%clk 0:01:06]} 35. Kh2 {[%clk 0:01:05.4]} 35... Bd5 {[%clk 0:01:03.8]}
36. Bxd5 {[%clk 0:01:01.3]} 36... Qe5+ {[%clk 0:01:02.4]} 37. Kh1 {[%clk
0:00:57.1]} 37... Qxd5 {[%clk 0:01:01]} 38. Nc4 {[%clk 0:00:51.1]} 38... Ne4
{[%clk 0:00:58.9]} 39. Qf3 {[%clk 0:00:45.8]} 39... Nxc5 {[%clk 0:00:56.7]} 40.
Qxd5 {[%clk 0:00:45.2]} 40... cxd5 {[%clk 0:00:57.2]} 41. Nd6 {[%clk 0:00:36.9]}
41... Kg6 {[%clk 0:00:55.2]} 42. Kg1 {[%clk 0:00:32.9]} 42... Kf6 {[%clk
0:00:53.5]} 43. b4 {[%clk 0:00:29.8]} 43... Nd3 {[%clk 0:00:50]} 44. b5 {[%clk
0:00:28]} 44... Nc5 {[%clk 0:00:42.3]} 45. Nc8 {[%clk 0:00:23.5]} 45... a6
{[%clk 0:00:40.5]} 46. a4 {[%clk 0:00:21.6]} 46... axb5 {[%clk 0:00:37.2]} 47.
axb5 {[%clk 0:00:20.1]} 47... d4 {[%clk 0:00:35.8]} 48. Kf2 {[%clk 0:00:19.5]}
48... Ke6 {[%clk 0:00:34.3]} 49. Ke2 {[%clk 0:00:17.1]} 49... f5 {[%clk
0:00:31.3]} 50. Nb6 {[%clk 0:00:16.1]} 50... g5 {[%clk 0:00:29.2]} 51. Nc4
{[%clk 0:00:14.2]} 51... Kd5 {[%clk 0:00:26.4]} 52. Nd2 {[%clk 0:00:13.8]} 52...
Nd7 {[%clk 0:00:24.7]} 53. Nf3 {[%clk 0:00:11.5]} 53... Kc5 {[%clk 0:00:22.3]}
54. Kd3 {[%clk 0:00:11.5]} 54... Kd5 {[%clk 0:00:20.1]} 55. Nxd4 {[%clk
0:00:11.3]} 55... Nc5+ {[%clk 0:00:18.1]} 56. Kc3 {[%clk 0:00:11.5]} 56... Ne4+
{[%clk 0:00:15.6]} 57. Kd3 {[%clk 0:00:11.9]} 57... Nc5+ {[%clk 0:00:15.3]} 58.
Kc3 {[%clk 0:00:12.2]} 58... Ne4+ {[%clk 0:00:14.7]} 59. Kd3 {[%clk 0:00:12.5]}
59... Nc5+ {[%clk 0:00:14.9]} 1/2-1/2

[Event "*** Titled Tuesday Blitz"]
[Site "Chess.com"]
[Date "2020.12.29"]
[Round "11"]
[White "MaxLeto"]
[Black "Ajedrez_con_German"]
[Result "1-0"]
[WhiteElo "2407"]
[BlackElo "2501"]
[TimeControl "180+1"]
[EndTime "12:06:20 PST"]
[Termination "MaxLeto won on time"]

1. g4 {[%clk 0:03:00.9]} 1... c6 {[%clk 0:02:56.6]} 2. Bg2 {[%clk 0:02:57.6]}
2... d6 {[%clk 0:02:47.4]} 3. g5 {[%clk 0:02:53.1]} 3... g6 {[%clk 0:02:47.1]}
4. d4 {[%clk 0:02:52.7]} 4... Bg7 {[%clk 0:02:47.2]} 5. h4 {[%clk 0:02:53.3]}
5... h5 {[%clk 0:02:45.8]} 6. Nf3 {[%clk 0:02:46.4]} 6... Bg4 {[%clk 0:02:43.7]}
7. Nbd2 {[%clk 0:02:42]} 7... Na6 {[%clk 0:02:38.4]} 8. Nf1 {[%clk 0:02:36.1]}
8... Bxf3 {[%clk 0:02:35.7]} 9. Bxf3 {[%clk 0:02:35.7]} 9... e6 {[%clk
0:02:35.7]} 10. c3 {[%clk 0:02:31.2]} 10... Ne7 {[%clk 0:02:35.3]} 11. Ng3
{[%clk 0:01:56.5]} 11... Nf5 {[%clk 0:02:26.9]} 12. Nxf5 {[%clk 0:01:46.5]}
12... exf5 {[%clk 0:02:27.8]} 13. Bf4 {[%clk 0:01:45.9]} 13... O-O {[%clk
0:02:15.8]} 14. Qb3 {[%clk 0:01:45.2]} 14... Qd7 {[%clk 0:02:09.2]} 15. O-O-O
{[%clk 0:01:38.6]} 15... Rfe8 {[%clk 0:02:06.9]} 16. Kb1 {[%clk 0:01:33.9]}
16... d5 {[%clk 0:02:01.9]} 17. c4 {[%clk 0:01:28.1]} 17... Re4 {[%clk
0:01:35.6]} 18. Bxe4 {[%clk 0:01:25.4]} 18... fxe4 {[%clk 0:01:34]} 19. cxd5
{[%clk 0:01:24.4]} 19... cxd5 {[%clk 0:01:32.3]} 20. e3 {[%clk 0:01:19.8]} 20...
Bf8 {[%clk 0:01:30.2]} 21. Rc1 {[%clk 0:01:18.4]} 21... Nb4 {[%clk 0:01:15.7]}
22. Rc3 {[%clk 0:01:10]} 22... Nc6 {[%clk 0:01:12]} 23. Rhc1 {[%clk 0:01:06.9]}
23... Rd8 {[%clk 0:01:10.7]} 24. Bg3 {[%clk 0:00:56.4]} 24... a6 {[%clk
0:01:03.2]} 25. Qb6 {[%clk 0:00:54]} 25... Rc8 {[%clk 0:00:51.3]} 26. Rb3 {[%clk
0:00:41.4]} 26... Nd8 {[%clk 0:00:12.6]} 27. Rc7 {[%clk 0:00:40.6]} 27... Rxc7
{[%clk 0:00:11.8]} 28. Qxc7 {[%clk 0:00:41.5]} 28... Qe8 {[%clk 0:00:09.2]} 29.
Rb6 {[%clk 0:00:28.3]} 29... Ne6 {[%clk 0:00:07.4]} 30. Qxb7 {[%clk 0:00:25.7]}
30... Qa4 {[%clk 0:00:07.5]} 31. Rb3 {[%clk 0:00:15.9]} 31... Qc4 {[%clk
0:00:06.7]} 32. a3 {[%clk 0:00:10.4]} 32... Qf1+ {[%clk 0:00:05.9]} 33. Ka2
{[%clk 0:00:10.8]} 33... Qc4 {[%clk 0:00:06.2]} 34. Qb8 {[%clk 0:00:03.5]} 34...
a5 {[%clk 0:00:06.1]} 35. Kb1 {[%clk 0:00:03]} 35... a4 {[%clk 0:00:05.8]} 36.
Rc3 {[%clk 0:00:02.7]} 36... Qf1+ {[%clk 0:00:05.8]} 37. Ka2 {[%clk 0:00:02.8]}
37... Qe2 {[%clk 0:00:04.7]} 38. Rc8 {[%clk 0:00:02.4]} 38... Qc4+ {[%clk
0:00:03.7]} 39. Rxc4 {[%clk 0:00:01.3]} 39... dxc4 {[%clk 0:00:03.8]} 40. Bd6
{[%clk 0:00:01.9]} 40... c3 {[%clk 0:00:03.3]} 41. Bxf8 {[%clk 0:00:01.6]} 41...
c2 {[%clk 0:00:03.9]} 42. Qc8 {[%clk 0:00:01.8]} 42... c1=Q {[%clk 0:00:03.6]}
43. Qxc1 {[%clk 0:00:02]} 43... Nxf8 {[%clk 0:00:04.5]} 44. Qc4 {[%clk
0:00:02.1]} 44... Kg7 {[%clk 0:00:05.4]} 45. Qxa4 {[%clk 0:00:02.4]} 45... Ne6
{[%clk 0:00:06.3]} 46. Qc4 {[%clk 0:00:02.6]} 46... Nxg5 {[%clk 0:00:07.2]} 47.
hxg5 {[%clk 0:00:02.6]} 1-0

[Event "*** Titled Tuesday Blitz"]
[Site "Chess.com"]
[Date "2020.12.29"]
[Round "11"]
[White "Piotrek1979"]
[Black "juancruzarias"]
[Result "1-0"]
[WhiteElo "2437"]
[BlackElo "2543"]
[TimeControl "180+1"]
[EndTime "12:06:22 PST"]
[Termination "Piotrek1979 won by resignation"]

1. e4 {[%clk 0:02:56.3]} 1... c5 {[%clk 0:02:58.9]} 2. Nf3 {[%clk 0:02:53.3]}
2... g6 {[%clk 0:02:59]} 3. d4 {[%clk 0:02:52.8]} 3... cxd4 {[%clk 0:02:59.9]}
4. Qxd4 {[%clk 0:02:52.7]} 4... Nf6 {[%clk 0:02:59.4]} 5. Nc3 {[%clk 0:02:49]}
5... Nc6 {[%clk 0:02:59.1]} 6. Qa4 {[%clk 0:02:48.6]} 6... d6 {[%clk 0:02:59.3]}
7. e5 {[%clk 0:02:48.7]} 7... Ng4 {[%clk 0:02:58.8]} 8. Bb5 {[%clk 0:02:40.1]}
8... Bg7 {[%clk 0:02:43.4]} 9. exd6 {[%clk 0:02:04.9]} 9... O-O {[%clk 0:02:23]}
10. Bxc6 {[%clk 0:01:51.9]} 10... bxc6 {[%clk 0:02:22.2]} 11. O-O {[%clk
0:01:50.9]} 11... Qxd6 {[%clk 0:02:16.6]} 12. Bf4 {[%clk 0:01:40.6]} 12... e5
{[%clk 0:02:12.8]} 13. Rad1 {[%clk 0:01:36.4]} 13... Qc7 {[%clk 0:02:06]} 14.
Bc1 {[%clk 0:01:23.5]} 14... Bf5 {[%clk 0:01:52.6]} 15. Ne4 {[%clk 0:01:15.6]}
15... Rad8 {[%clk 0:01:36.9]} 16. h3 {[%clk 0:01:04.9]} 16... Nf6 {[%clk
0:01:24.9]} 17. Nxf6+ {[%clk 0:00:42.7]} 17... Bxf6 {[%clk 0:01:25.8]} 18. Be3
{[%clk 0:00:42.3]} 18... Rxd1 {[%clk 0:01:08.3]} 19. Rxd1 {[%clk 0:00:43.2]}
19... e4 {[%clk 0:01:01.3]} 20. Nd4 {[%clk 0:00:36.1]} 20... Rd8 {[%clk
0:01:00.5]} 21. c3 {[%clk 0:00:35.7]} 21... c5 {[%clk 0:00:52.9]} 22. Nxf5
{[%clk 0:00:35.2]} 22... Rxd1+ {[%clk 0:00:52.1]} 23. Qxd1 {[%clk 0:00:36.1]}
23... gxf5 {[%clk 0:00:52.3]} 24. Qd5 {[%clk 0:00:36.4]} 24... Qe5 {[%clk
0:00:38.8]} 25. Qxe5 {[%clk 0:00:34.7]} 25... Bxe5 {[%clk 0:00:39.7]} 26. Bxc5
{[%clk 0:00:35.1]} 26... a6 {[%clk 0:00:40.2]} 27. Bd4 {[%clk 0:00:33.8]} 27...
Bd6 {[%clk 0:00:36.2]} 28. b4 {[%clk 0:00:33.2]} 28... Kf8 {[%clk 0:00:36.1]}
29. a4 {[%clk 0:00:32.7]} 29... Ke7 {[%clk 0:00:36]} 30. b5 {[%clk 0:00:32.7]}
30... axb5 {[%clk 0:00:36.3]} 31. axb5 {[%clk 0:00:33.6]} 31... f4 {[%clk
0:00:27.8]} 32. c4 {[%clk 0:00:33.2]} 32... f5 {[%clk 0:00:17.7]} 33. Kf1 {[%clk
0:00:31.6]} 33... f3 {[%clk 0:00:15.5]} 34. gxf3 {[%clk 0:00:29.7]} 34... exf3
{[%clk 0:00:16.4]} 35. c5 {[%clk 0:00:28.1]} 35... Bf4 {[%clk 0:00:15.5]} 36. b6
{[%clk 0:00:20.3]} 36... Kd7 {[%clk 0:00:15.6]} 37. Ke1 {[%clk 0:00:19.2]} 37...
Kc6 {[%clk 0:00:13.6]} 38. Be3 {[%clk 0:00:18.6]} 38... Be5 {[%clk 0:00:11.5]}
39. Kd1 {[%clk 0:00:14.5]} 39... f4 {[%clk 0:00:11.9]} 40. Bd2 {[%clk
0:00:14.4]} 40... Kxc5 {[%clk 0:00:12.1]} 41. b7 {[%clk 0:00:14.3]} 41... Kc6
{[%clk 0:00:11.9]} 42. Bc3 {[%clk 0:00:14.3]} 42... Bb8 {[%clk 0:00:10.6]} 43.
Kc2 {[%clk 0:00:14.5]} 43... Kxb7 {[%clk 0:00:11.2]} 44. Kd3 {[%clk 0:00:15.4]}
44... Kc6 {[%clk 0:00:11.8]} 45. Ke4 {[%clk 0:00:16.3]} 45... Kc5 {[%clk
0:00:11.4]} 46. Be5 {[%clk 0:00:15.6]} 46... Ba7 {[%clk 0:00:02.9]} 47. Bd4+
{[%clk 0:00:15.1]} 1-0

[Event "*** Titled Tuesday Blitz"]
[Site "Chess.com"]
[Date "2020.12.29"]
[Round "11"]
[White "Chesswizard_2007"]
[Black "Shepherdboy"]
[Result "0-1"]
[WhiteElo "2648"]
[BlackElo "2399"]
[TimeControl "180+1"]
[EndTime "12:06:25 PST"]
[Termination "Shepherdboy won by checkmate"]

1. d4 {[%clk 0:02:55.6]} 1... d5 {[%clk 0:02:58.5]} 2. c4 {[%clk 0:02:47.4]}
2... e6 {[%clk 0:02:58.1]} 3. Nc3 {[%clk 0:02:46.1]} 3... Nf6 {[%clk 0:02:58]}
4. cxd5 {[%clk 0:02:44.2]} 4... Nxd5 {[%clk 0:02:58.4]} 5. e4 {[%clk 0:02:44.8]}
5... Nxc3 {[%clk 0:02:57.7]} 6. bxc3 {[%clk 0:02:45.7]} 6... c5 {[%clk
0:02:58.2]} 7. Rb1 {[%clk 0:02:46.6]} 7... Be7 {[%clk 0:02:50.3]} 8. Nf3 {[%clk
0:02:45.3]} 8... O-O {[%clk 0:02:47.9]} 9. Be2 {[%clk 0:02:45.1]} 9... b6 {[%clk
0:02:42.1]} 10. O-O {[%clk 0:02:43.2]} 10... Bb7 {[%clk 0:02:42.1]} 11. Bd3
{[%clk 0:02:39.5]} 11... cxd4 {[%clk 0:02:36.2]} 12. cxd4 {[%clk 0:02:40.4]}
12... Nc6 {[%clk 0:02:36.5]} 13. Be3 {[%clk 0:02:37.5]} 13... Rc8 {[%clk
0:02:32.9]} 14. g3 {[%clk 0:02:20.5]} 14... Nb4 {[%clk 0:02:30.7]} 15. Ne5
{[%clk 0:02:06.2]} 15... f6 {[%clk 0:02:27.9]} 16. Rxb4 {[%clk 0:01:40.3]} 16...
Bxb4 {[%clk 0:02:22.1]} 17. Nf3 {[%clk 0:01:35.8]} 17... f5 {[%clk 0:02:21.9]}
18. exf5 {[%clk 0:01:30.9]} 18... exf5 {[%clk 0:02:16.4]} 19. Ne5 {[%clk
0:01:28.7]} 19... Qd5 {[%clk 0:02:05.4]} 20. f3 {[%clk 0:01:23.9]} 20... Bd6
{[%clk 0:01:58.2]} 21. Bc2 {[%clk 0:01:17.2]} 21... Rxc2 {[%clk 0:01:45.6]} 22.
Qxc2 {[%clk 0:01:18.1]} 22... f4 {[%clk 0:01:33.4]} 23. gxf4 {[%clk 0:01:12]}
23... Rf6 {[%clk 0:01:28.4]} 24. Qb3 {[%clk 0:01:03.5]} 24... Qxb3 {[%clk
0:01:24.3]} 25. axb3 {[%clk 0:01:04.4]} 25... Bd5 {[%clk 0:01:19.6]} 26. Ra1
{[%clk 0:00:59.6]} 26... a5 {[%clk 0:01:19.6]} 27. Rb1 {[%clk 0:00:47.4]} 27...
Bb4 {[%clk 0:01:19.4]} 28. Nc4 {[%clk 0:00:46]} 28... Bxf3 {[%clk 0:01:15.7]}
29. d5 {[%clk 0:00:43.6]} 29... Bxd5 {[%clk 0:01:10.7]} 30. Nxb6 {[%clk
0:00:43.8]} 30... Rg6+ {[%clk 0:01:06]} 31. Kf1 {[%clk 0:00:42.5]} 31... Be6
{[%clk 0:00:58.6]} 32. Rc1 {[%clk 0:00:30.1]} 32... h5 {[%clk 0:00:49.4]} 33.
Nc4 {[%clk 0:00:26.9]} 33... h4 {[%clk 0:00:44.5]} 34. Kf2 {[%clk 0:00:23.9]}
34... h3 {[%clk 0:00:42.2]} 35. Bd4 {[%clk 0:00:21.9]} 35... Rg2+ {[%clk
0:00:39.6]} 36. Kf3 {[%clk 0:00:22.3]} 36... Bd5+ {[%clk 0:00:32.1]} 37. Ke3
{[%clk 0:00:22.1]} 37... Rxh2 {[%clk 0:00:33]} 38. Bb6 {[%clk 0:00:11.7]} 38...
Rg2 {[%clk 0:00:28.8]} 39. Bxa5 {[%clk 0:00:06.3]} 39... Bxa5 {[%clk 0:00:22.1]}
40. Nxa5 {[%clk 0:00:07.2]} 40... h2 {[%clk 0:00:18.5]} 41. Rh1 {[%clk
0:00:06.3]} 41... Re2+ {[%clk 0:00:11.1]} 42. Kxe2 {[%clk 0:00:03.8]} 42... Bxh1
{[%clk 0:00:12]} 43. Nc4 {[%clk 0:00:02.4]} 43... Bd5 {[%clk 0:00:10.3]} 44. Ne5
{[%clk 0:00:03.3]} 44... h1=Q {[%clk 0:00:09]} 45. b4 {[%clk 0:00:04.2]} 45...
Qe4+ {[%clk 0:00:08.3]} 46. Kd2 {[%clk 0:00:02.3]} 46... Qxb4+ {[%clk
0:00:09.2]} 47. Ke3 {[%clk 0:00:02.2]} 47... Qe4+ {[%clk 0:00:09.7]} 48. Kf2
{[%clk 0:00:02.1]} 48... Qxf4+ {[%clk 0:00:10.6]} 49. Nf3 {[%clk 0:00:01.9]}
49... Qxf3+ {[%clk 0:00:10.3]} 50. Kg1 {[%clk 0:00:02.2]} 50... Qg2# {[%clk
0:00:10.4]} 0-1